[Event "39th Citta Arco Open 2017"]
[Site "Arco"]
[Date "2017.10.09"]
[Round "2.15"]
[White "De Santis, Alessio"]
[Black "Beulertz, Stefan"]
[Result "1-0"]
[ECO "A01"]
[WhiteElo "2162"]
[BlackElo "1994"]
[Annotator "ChessBase"]
[PlyCount "59"]
[EventType "swiss"]
[EventCountry "ITA"]
[TimeControl "40/5400+30:1800+30"]

1. b3 {[%emt 0:07:30]} e5 {[%emt 0:03:00]} 2. Bb2 {[%emt 0:00:00]} Nc6 {[%emt 0:00:30]} 3. c4 {[%emt 0:00:00]} Nf6 {[%emt 0:00:30]} 4. e3 {[%emt 0:00:30]} d5 {[%emt 0:04:30]} 5. cxd5 {[%emt 0:00:30]} Qxd5 {[%emt 0:05:30]} 6. Nc3 {[%emt 0:00:30]} Qd6 {[%emt 0:04:30]} 7. a3 {[%emt 0:03:30]} a6 {[%emt 0:03:30]} 8. b4 {[%emt 0:01:30]} b5 {[%emt 0:02:30]} 9. Qc2 {[%emt 0:00:30]} Bb7 {[%emt 0:03:30]} 10. Nf3 {[%emt 0:01:30]} Be7 {[%emt 0:04:30]} 11. Rc1 {[%emt 0:02:30]} O-O {[%emt 0:04:30]} 12. Be2 {[%emt 0:03:30]} Rfd8 {[%emt 0:07:30]} 13. O-O {[%emt 0:01:30]} Bf8 {[%emt 0:01:30]} 14. Rfd1 {[%emt 0:04:30]} Qe7 {[%emt 0:06:30]} 15. Ng5 {[%emt 0:05:30]} h6 {[%emt 0:18:30]} 16. Nge4 {[%emt 0:01:30]} Qe6 {[%emt 0:02:30]} 17. Nxf6+ {[%emt 0:00:30]} gxf6 {[%emt 0:02:30]} 18. Ne4 {[%emt 0:01:30]} Rac8 {[%emt 0:03:30]} 19. Bg4 {[%emt 0:06:30]} f5 {[%emt 0:04:10]} 20. Nc5 {[%emt 0:00:00]} Bxc5 {[%emt 0:01:38]} 21. Bxf5 {[%emt 0:00:00]} Qf6 {[%emt 0:05:35]} 22. Bxc8 {[%emt 0:13:30]} Rxc8 {[%emt 0:00:03]} 23. Qxc5 {[%emt 0:00:00]} Qg6 {[%emt 0:01:18]} 24. f3 {[%emt 0:02:00]} Rd8 {[%emt 0:02:56]} 25. e4 {[%emt 0:01:30]} Qg5 {[%emt 0:01:12]} 26. Qe3 {[%emt 0:00:30]} Qg6 {[%emt 0:02:22]} 27. Rc5 {[%emt 0:04:30]} Qd6 {[%emt 0:02:14]} 28. Rd5 {[%emt 0:00:30]} Qg6 {[%emt 0:01:11]} 29. Rxd8+ {[%emt 0:00:00]} Nxd8 {[%emt 0:00:03]} 30. d4 {[%emt 0:00:00]} 1-0

[Event "39th Citta Arco Open 2017"]
[Site "Arco"]
[Date "2017.10.09"]
[Round "2.16"]
[White "Oppici, Gabriele"]
[Black "Wurm, Alexander"]
[Result "1-0"]
[ECO "D00"]
[WhiteElo "1985"]
[BlackElo "2156"]
[Annotator "ChessBase"]
[PlyCount "85"]
[EventType "swiss"]
[EventCountry "ITA"]
[TimeControl "40/5400+30:1800+30"]

1. d4 {[%emt 0:02:30]} d5 {[%emt 0:01:00]} 2. Bf4 {[%emt 0:00:30]} Nf6 {[%emt 0:00:30]} 3. e3 {[%emt 0:00:00]} c5 {[%emt 0:01:30]} 4. c3 {[%emt 0:02:00]} Nc6 {[%emt 0:01:30]} 5. Nd2 {[%emt 0:01:30]} Qb6 {[%emt 0:03:30]} 6. Qc2 {[%emt 0:05:30]} g6 {[%emt 0:02:30]} 7. Ngf3 {[%emt 0:02:30]} Bf5 {[%emt 0:06:30]} 8. Bd3 {[%emt 0:11:30]} Bxd3 {[%emt 0:01:30]} 9. Qxd3 {[%emt 0:00:30]} Bg7 {[%emt 0:01:30]} 10. O-O {[%emt 0:01:30]} O-O {[%emt 0:03:30]} 11. h3 {[%emt 0:05:30]} Rfd8 {[%emt 0:05:30]} 12. a4 {[%emt 0:11:30]} c4 {[%emt 0:23:30]} 13. Qc2 {[%emt 0:00:30]} Nh5 {[%emt 0:06:30]} 14. Bh2 {[%emt 0:01:30]} f5 {[%emt 0:02:30]} 15. Rfb1 {[%emt 0:07:30]} Na5 {[%emt 0:04:30]} 16. b3 {[%emt 0:07:30]} cxb3 {[%emt 0:01:30]} 17. Nxb3 {[%emt 0:00:00]} Rac8 {[%emt 0:06:30]} 18. Nxa5 {[%emt 0:13:00]} Qxa5 {[%emt 0:00:30]} 19. Rxb7 {[%emt 0:00:30]} Rxc3 {[%emt 0:01:30]} 20. Qd2 {[%emt 0:01:30]} Rdc8 {[%emt 0:00:30]} 21. Be5 {[%emt 0:03:36]} Bf8 {[%emt 0:05:07]} 22. Rb5 {[%emt 0:01:56]} Qa6 {[%emt 0:02:55]} 23. Rxd5 {[%emt 0:03:21]} Rc2 {[%emt 0:01:59]} 24. Qd1 {[%emt 0:05:33]} e6 {[%emt 0:05:30]} 25. Rd8 {[%emt 0:01:28]} Rxd8 {[%emt 0:09:58]} 26. Qxc2 {[%emt 0:00:06]} Rc8 {[%emt 0:00:08]} 27. Qb3 {[%emt 0:00:50]} Qc4 {[%emt 0:01:21]} 28. Qb7 {[%emt 0:00:52]} Qc6 {[%emt 0:00:31]} 29. Rb1 {[%emt 0:02:20]} Ng7 {[%emt 0:00:29]} 30. a5 {[%emt 0:03:21]} h6 {[%emt 0:00:31]} 31. Qxa7 {[%emt 0:02:48]} Ra8 {[%emt 0:00:30]} 32. Qb6 {[%emt 0:00:20]} Qe4 {[%emt 0:00:30]} 33. Rc1 {[%emt 0:01:00]} Qd5 {[%emt 0:00:30]} 34. a6 {[%emt 0:00:22]} Ne8 {[%emt 0:00:29]} 35. a7 {[%emt 0:00:58]} Nd6 {[%emt 0:00:29]} 36. Bxd6 {[%emt 0:00:44]} Bxd6 {[%emt 0:00:06]} 37. Rc6 {[%emt 0:00:55]} Bf8 {[%emt 0:00:19]} 38. Rxe6 {[%emt 0:00:20]} g5 {[%emt 0:00:42]} 39. Ne5 {[%emt 0:00:16]} Qd7 {[%emt 0:00:42]} 40. Rg6+ {[%emt 0:00:25]} Kh7 {[%emt 0:30:12]} 41. Rf6 {[%emt 0:00:59]} Qxa7 {[%emt 0:00:00]} 42. Rf7+ {[%emt 0:00:30]} Qxf7 {[%emt 0:00:00]} 43. Nxf7 {[%emt 0:00:00]} 1-0

[Event "39th Citta Arco Open 2017"]
[Site "Arco"]
[Date "2017.10.09"]
[Round "2.17"]
[White "Sprotte, Norbert"]
[Black "Cordara, Michele"]
[Result "1-0"]
[ECO "A47"]
[WhiteElo "2154"]
[BlackElo "1990"]
[Annotator "ChessBase"]
[PlyCount "59"]
[EventType "swiss"]
[EventCountry "ITA"]
[TimeControl "40/5400+30:1800+30"]

1. d4 {[%emt 0:00:30]} Nf6 {[%emt 0:01:00]} 2. Nf3 {[%emt 0:00:00]} e6 {[%emt 0:03:30]} 3. e3 {[%emt 0:01:00]} b6 {[%emt 0:01:30]} 4. Bd3 {[%emt 0:00:00]} Ba6 {[%emt 0:13:30]} 5. c4 {[%emt 0:04:00]} Be7 {[%emt 0:03:30]} 6. O-O {[%emt 0:00:30]} d5 {[%emt 0:01:30]} 7. Ne5 {[%emt 0:08:30]} dxc4 {[%emt 0:02:30]} 8. Nxc4 {[%emt 0:02:30]} O-O {[%emt 0:00:30]} 9. b3 {[%emt 0:03:30]} c5 {[%emt 0:01:30]} 10. dxc5 {[%emt 0:03:30]} Bxc5 {[%emt 0:07:30]} 11. Bb2 {[%emt 0:00:30]} Bxc4 {[%emt 0:02:30]} 12. Bxc4 {[%emt 0:05:30]} Qxd1 {[%emt 0:01:30]} 13. Rxd1 {[%emt 0:00:00]} Nc6 {[%emt 0:00:30]} 14. Nc3 {[%emt 0:08:00]} Rfd8 {[%emt 0:03:30]} 15. Bb5 {[%emt 0:02:30]} Nb4 {[%emt 0:07:30]} 16. Rac1 {[%emt 0:02:30]} Nfd5 {[%emt 0:08:30]} 17. Nxd5 {[%emt 0:04:30]} Rxd5 {[%emt 0:01:30]} 18. a3 {[%emt 0:03:30]} Bf8 {[%emt 0:06:30]} 19. Rxd5 {[%emt 0:06:30]} Nxd5 {[%emt 0:00:30]} 20. Kf1 {[%emt 0:01:30]} Rd8 {[%emt 0:12:56]} 21. Ke2 {[%emt 0:01:30]} Bd6 {[%emt 0:09:58]} 22. g3 {[%emt 0:03:30]} Ne7 {[%emt 0:02:47]} 23. Ba6 {[%emt 0:02:30]} Kf8 {[%emt 0:00:40]} 24. e4 {[%emt 0:03:30]} Bb8 {[%emt 0:03:34]} 25. f4 {[%emt 0:06:30]} f6 {[%emt 0:00:35]} 26. Bc4 {[%emt 0:01:30]} Nc6 {[%emt 0:00:46]} 27. Bxe6 {[%emt 0:01:30]} Nd4+ {[%emt 0:00:46]} 28. Bxd4 {[%emt 0:00:30]} Rxd4 {[%emt 0:00:01]} 29. Bd5 {[%emt 0:03:30]} Bd6 {[%emt 0:00:08]} 30. b4 1-0